bitfinex/quotes_BTCUSD_20250616
["timestamp","ask_amount","ask_price","bid_price","bid_amount"]
[1750049429023,0.74882524,106470.0,106460.0,0.27613909]
[1750049429435,0.74882525,106470.0,106460.0,0.27613909]
[1750049429665,0.74882527,106470.0,106460.0,0.27613909]
[1750049429991,0.74882533,106470.0,106460.0,0.27613909]
[1750049430192,0.7400129,106470.0,106460.0,0.27613909]
[1750049430873,0.74882521,106470.0,106460.0,0.27613909]
[1750049431059,0.7488252,106470.0,106460.0,0.27613909]
[1750049432403,0.74882267,106470.0,106460.0,0.27613909]
[1750049432632,0.74882274,106470.0,106460.0,0.27613909]
[1750049433544,0.7400129,106470.0,106460.0,0.27613909]
[1750049433764,0.74882274,106470.0,106460.0,0.27613909]
[1750049434706,0.74882542,106470.0,106460.0,0.27613909]
[1750049434813,0.7400129,106470.0,106460.0,0.27613909]
[1750049435257,0.74882547,106470.0,106460.0,0.27613909]
[1750049435960,0.74882547,106470.0,106460.0,0.06259909]
[1750049436183,0.74882547,106470.0,106460.0,0.23763909]
[1750049436391,0.74882589,106470.0,106460.0,0.23763909]
[1750049436598,0.74882595,106470.0,106460.0,0.23763909]
[1750049436818,0.7400129,106470.0,106460.0,0.08351909]
[1750049437034,0.74882595,106470.0,106460.0,0.04339909]
[1750049437266,0.74882596,106470.0,106460.0,0.19751909]
[1750049437461,0.74882597,106470.0,106460.0,0.04339909]
[1750049437684,0.7400129,106470.0,106460.0,0.19751909]
[1750049437896,0.74882597,106470.0,106460.0,0.19751909]
[1750049438328,0.74882597,106470.0,106460.0,0.03089326]
[1750049438581,0.74882597,106470.0,106460.0,0.18501326]
[1750049438792,0.7400129,106470.0,106460.0,0.18501326]
[1750049439007,0.7400129,106470.0,106460.0,0.19751909]
[1750049439008,0.74882598,106470.0,106460.0,0.19751909]
[1750049439591,0.74882598,106470.0,106460.0,0.04339909]
[1750049439791,0.7400129,106470.0,106460.0,0.19751909]
[1750049439994,0.74882598,106470.0,106460.0,0.19751909]
[1750049440164,0.7400129,106470.0,106460.0,0.19751909]
[1750049440361,0.74882998,106470.0,106460.0,0.19751909]
[1750049440566,0.7400129,106470.0,106460.0,0.19751909]
[1750049440817,0.74882998,106470.0,106460.0,0.19751909]
[1750049440953,0.7400129,106470.0,106460.0,0.18501326]
[1750049441636,0.74883,106470.0,106460.0,0.18501326]
[1750049442041,0.75544282,106470.0,106460.0,0.19751909]
[1750049442249,0.75544282,106470.0,106460.0,0.21561909]
[1750049442250,0.74883,106470.0,106460.0,0.21561909]
[1750049443271,0.7400129,106470.0,106460.0,0.21561909]
[1750049443483,0.74883,106470.0,106460.0,0.21561909]
[1750049443733,0.7400129,106470.0,106460.0,0.19751909]
[1750049443940,0.74882999,106470.0,106460.0,0.15712]
[1750049444147,0.74883,106470.0,106460.0,0.18501326]
[1750049444560,0.74883,106470.0,106460.0,0.04339909]
[1750049444768,0.74883,106470.0,106460.0,0.19751909]
[1750049444979,0.7400129,106470.0,106460.0,0.21491909]
[1750049445187,0.74882998,106470.0,106460.0,0.21491909]
[1750049445428,0.7400129,106470.0,106460.0,0.21491909]
[1750049445640,0.74882999,106470.0,106460.0,0.21491909]
[1750049445850,0.7400129,106470.0,106460.0,0.21491909]
[1750049446101,0.74882999,106470.0,106460.0,0.21491909]
[1750049447280,0.7400129,106470.0,106460.0,0.21491909]
[1750049447481,0.74882999,106470.0,106460.0,0.21491909]
[1750049447733,0.75544282,106470.0,106460.0,0.21491909]
[1750049447950,0.75544282,106470.0,106460.0,0.23241909]
[1750049448173,0.7400129,106470.0,106460.0,0.23241909]
[1750049448394,0.75544282,106470.0,106460.0,0.23241909]
[1750049448615,0.74882209,106470.0,106460.0,0.23241909]
[1750049449303,0.74882208,106470.0,106460.0,0.23241909]
[1750049450983,0.74882209,106470.0,106460.0,0.23241909]
[1750049451212,0.74882208,106470.0,106460.0,0.23241909]
[1750049451436,0.7488221,106470.0,106460.0,0.23241909]
[1750049451880,0.74882209,106470.0,106460.0,0.23241909]
[1750049452123,0.74882209,106470.0,106460.0,0.27051412]
[1750049452836,0.74882207,106470.0,106460.0,0.27051412]
[1750049453080,0.74882207,106470.0,106460.0,0.23241909]
[1750049453549,0.74882208,106470.0,106460.0,0.23241909]
[1750049453770,0.74882209,106470.0,106460.0,0.23241909]
[1750049454489,0.7400129,106470.0,106460.0,0.23241909]
[1750049454698,0.74882209,106470.0,106460.0,0.27786262]
[1750049455370,0.7400129,106470.0,106460.0,0.27786262]
[1750049455609,0.74882209,106470.0,106460.0,0.23241909]
[1750049455868,0.7488214,106470.0,106460.0,0.23241909]
[1750049456341,0.7400129,106470.0,106460.0,0.23241909]
[1750049456579,0.74882142,106470.0,106460.0,0.06579326]
[1750049456822,0.74882142,106470.0,106460.0,0.20241326]
[1750049457311,0.74882143,106470.0,106460.0,0.20241326]
[1750049457519,0.7400129,106470.0,106460.0,0.20241326]
[1750049457725,0.7400129,106470.0,106460.0,0.21991326]
[1750049458144,0.74882143,106470.0,106460.0,0.21991326]
[1750049458362,0.74882338,106470.0,106460.0,0.21991326]
[1750049458573,0.7400129,106470.0,106460.0,0.21991326]
[1750049458780,0.74882338,106470.0,106460.0,0.21991326]
[1750049460466,0.35960228,106470.0,106460.0,0.21991326]
[1750049460655,0.74882338,106470.0,106460.0,0.21991326]
[1750049460851,0.35960228,106470.0,106460.0,0.21991326]
[1750049461058,1.23469288,106470.0,106460.0,0.21991326]
[1750049461625,1.2258824,106470.0,106460.0,0.21991326]
[1750049462111,1.23469288,106470.0,106460.0,0.21991326]
[1750049462955,1.2258824,106470.0,106460.0,0.21991326]
[1750049463160,1.23469288,106470.0,106460.0,0.21991326]
[1750049463699,1.2258824,106470.0,106460.0,0.21991326]
[1750049463913,1.23469288,106470.0,106460.0,0.21991326]
[1750049464237,1.23469288,106470.0,106460.0,0.19202]
[1750049464394,1.23249718,106470.0,106460.0,0.003]
[1750049464596,6.33719529,106470.0,106460.0,0.18501326]
[1750049464796,6.33719583,106470.0,106460.0,0.18501326]
[1750049464995,6.32837604,106470.0,106460.0,0.18501326]
[1750049465210,6.33719647,106470.0,106460.0,0.18501326]
[1750049465451,6.32837605,106470.0,106460.0,0.15712]
[1750049465623,6.33719648,106470.0,106460.0,0.18501326]
[1750049466161,6.31899648,106470.0,106460.0,0.18501326]
[1750049466373,6.31017605,106470.0,106460.0,0.03089326]
[1750049466574,6.31238116,106470.0,106460.0,0.18501326]
[1750049466798,6.31017605,106470.0,106460.0,0.18501326]
[1750049467006,6.30356073,106470.0,106460.0,0.03089326]
[1750049467209,6.32837605,106470.0,106460.0,0.18501326]
[1750049467356,6.33719648,106470.0,106460.0,0.18501326]
[1750049467768,6.32837605,106470.0,106460.0,0.18501326]
[1750049467967,6.31238116,106470.0,106460.0,0.18501326]
[1750049468175,6.31899648,106470.0,106460.0,0.18501326]
[1750049468377,6.31238116,106470.0,106460.0,0.18501326]
[1750049468615,6.30356073,106470.0,106460.0,0.18501326]
[1750049468821,6.31238116,106470.0,106460.0,0.18501326]
[1750049469059,6.31899648,106470.0,106460.0,0.18501326]
[1750049469926,6.31899649,106470.0,106460.0,0.18501326]
[1750049470127,6.31238117,106470.0,106460.0,0.18501326]
[1750049470280,6.31017606,106470.0,106460.0,0.18501326]
[1750049470481,6.30356073,106470.0,106460.0,0.18501326]
[1750049470640,6.31899648,106470.0,106460.0,0.18501326]
[1750049471050,6.31017606,106470.0,106460.0,0.18501326]
[1750049471684,6.31236887,106470.0,106460.0,0.18501326]
[1750049471906,6.31897498,106470.0,106460.0,0.18501326]
[1750049472102,6.31016683,106470.0,106460.0,0.18501326]
[1750049472310,6.31897497,106470.0,106460.0,0.18501326]
[1750049472510,6.31897498,106470.0,106460.0,0.18501326]
[1750049472798,6.30356073,106470.0,106460.0,0.18501326]
[1750049473019,6.31897498,106470.0,106460.0,0.18501326]
[1750049473445,6.31236887,106470.0,106460.0,0.18501326]
[1750049473652,6.31897498,106470.0,106460.0,0.03089326]
[1750049473860,6.31897498,106470.0,106460.0,0.18501326]
[1750049474278,6.43341674,106470.0,106460.0,0.003]
[1750049474483,6.460758,106470.0,106460.0,0.003]
[1750049474692,6.4917002,106470.0,106460.0,0.15712]
[1750049474898,6.46134873,106470.0,106460.0,0.15712]
[1750049475099,6.46355098,106470.0,106460.0,0.15712]
[1750049475302,6.48953853,106470.0,106450.0,0.20978948]
[1750049475521,0.7775453,106460.0,106450.0,0.20978948]
[1750049475707,0.78635423,106460.0,106450.0,0.36390948]
[1750049475915,0.784152,106460.0,106450.0,0.36390948]
[1750049476042,0.79296093,106460.0,106450.0,0.20978948]
[1750049476247,5.88227312,106460.0,106450.0,0.18201326]
[1750049476459,5.8888799,106460.0,106450.0,0.18201326]
[1750049476671,5.88887993,106460.0,106450.0,0.18201326]
[1750049477086,5.87067993,106460.0,106450.0,0.18201326]
[1750049477293,5.049529,106450.0,106440.0,0.035]
[1750049477531,0.8838997,106450.0,106440.0,0.18916694]
[1750049478116,0.8750906,106450.0,106440.0,0.18916694]
[1750049478581,0.8750906,106450.0,106440.0,0.2170602]
[1750049478582,0.44635465,106450.0,106440.0,0.2170602]
[1750049478810,0.4375453,106450.0,106440.0,0.2190602]
[1750049479260,0.44635197,106450.0,106440.0,0.2190602]
[1750049480005,0.4375453,106450.0,106440.0,0.2190602]
[1750049480219,0.44635197,106450.0,106440.0,0.2190602]
[1750049481586,0.446352,106450.0,106440.0,0.2190602]
[1750049482023,0.8750906,106450.0,106440.0,0.2190602]
[1750049482226,0.4375453,106450.0,106440.0,0.2190602]
[1750049482339,0.44635201,106450.0,106440.0,0.2190602]
[1750049482962,0.00880671,106450.0,106440.0,0.2190602]
[1750049483207,0.4375453,106450.0,106440.0,0.2190602]
[1750049483658,0.44635201,106450.0,106440.0,0.2190602]
[1750049484107,0.44635199,106450.0,106440.0,0.2190602]
[1750049484327,0.4375453,106450.0,106440.0,0.2190602]
[1750049484757,5.049529,106450.0,106440.0,0.26013463]
[1750049484974,0.34,106460.0,106450.0,0.02789326]
[1750049485203,0.78633877,106460.0,106450.0,0.06519326]
[1750049485647,0.78633862,106460.0,106450.0,0.06519326]
[1750049485906,0.7775453,106460.0,106450.0,0.06519326]
[1750049486143,0.78633862,106460.0,106450.0,0.06519326]
[1750049486604,0.78633863,106460.0,106450.0,0.06519326]
[1750049486822,0.73776745,106460.0,106450.0,0.06519326]
[1750049487049,0.72897412,106460.0,106450.0,0.06519326]
[1750049487289,0.73776745,106460.0,106450.0,0.06519326]
[1750049487935,0.72897412,106460.0,106450.0,0.06519326]
[1750049488150,0.73776745,106460.0,106450.0,0.06519326]
[1750049488379,0.73777155,106460.0,106450.0,0.06519326]
[1750049489266,0.72897412,106460.0,106450.0,0.06519326]
[1750049489479,0.73777155,106460.0,106450.0,0.06519326]
[1750049490809,0.73777155,106460.0,106450.0,0.19142]
[1750049491047,0.73777192,106460.0,106450.0,0.21931326]
[1750049491262,0.73777204,106460.0,106450.0,0.21931326]
[1750049491470,0.73777173,106460.0,106450.0,0.23181909]
[1750049491682,0.73777171,106460.0,106450.0,0.07769909]
[1750049491904,0.72897412,106460.0,106450.0,0.23181909]
[1750049492120,0.73777155,106460.0,106450.0,0.07769909]
[1750049492380,0.7377716,106460.0,106450.0,0.23181909]
[1750049494652,0.72897412,106460.0,106450.0,0.23181909]
[1750049495117,0.73777161,106460.0,106450.0,0.23181909]
[1750049495828,0.73777852,106460.0,106450.0,0.23181909]
[1750049496397,0.72897412,106460.0,106450.0,0.23181909]
[1750049496794,0.73777852,106460.0,106450.0,0.23181909]
[1750049497204,0.34,106460.0,106450.0,0.23181909]
[1750049497411,0.73777852,106460.0,106450.0,0.23181909]
[1750049497762,0.72897412,106460.0,106450.0,0.23181909]
[1750049497970,0.73777852,106460.0,106450.0,0.23181909]
[1750049498757,0.72847412,106460.0,106450.0,0.23181909]
[1750049499453,0.73727853,106460.0,106450.0,0.23181909]
[1750049499889,0.72847412,106460.0,106450.0,0.23181909]
[1750049500040,0.73727853,106460.0,106450.0,0.23181909]
[1750049500655,0.72847412,106460.0,106450.0,0.25901769]
[1750049500876,0.7372785,106460.0,106450.0,0.25901769]
[1750049501463,0.73727844,106460.0,106450.0,0.23181909]
[1750049501657,0.72847412,106460.0,106450.0,0.23181909]
[1750049501866,0.73728179,106460.0,106450.0,0.23181909]
[1750049502489,0.72847412,106460.0,106450.0,0.23181909]
[1750049502906,0.73728179,106460.0,106450.0,0.23181909]
[1750049505067,0.72847412,106460.0,106450.0,0.23181909]
[1750049505309,0.73728179,106460.0,106450.0,0.23181909]
[1750049506733,0.72847412,106460.0,106450.0,0.23181909]
[1750049506929,0.78591625,106460.0,106450.0,0.23181909]
[1750049507576,0.77710858,106460.0,106450.0,0.23181909]
[1750049507774,0.78591625,106460.0,106450.0,0.23181909]
[1750049507917,0.77710858,106460.0,106450.0,0.23181909]
[1750049508115,0.78591624,106460.0,106450.0,0.23181909]
[1750049508959,0.77710858,106460.0,106450.0,0.23181909]
[1750049509295,0.78591786,106460.0,106450.0,0.23181909]
[1750049510050,0.77710858,106460.0,106450.0,0.23181909]
[1750049510494,0.78591785,106460.0,106450.0,0.23181909]
[1750049511631,0.77710858,106460.0,106450.0,0.07769909]
[1750049511773,0.82071851,106460.0,106450.0,0.07769909]
[1750049511953,0.82071914,106460.0,106450.0,0.23177909]
[1750049512166,0.82071916,106460.0,106450.0,0.23177909]
[1750049512589,0.82071907,106460.0,106450.0,0.23177909]
[1750049512794,0.82071883,106460.0,106450.0,0.23177909]
[1750049513186,0.81411171,106460.0,106450.0,0.23177909]
[1750049513527,0.82071883,106460.0,106450.0,0.23177909]
[1750049513950,0.81411171,106460.0,106450.0,0.23177909]
[1750049514290,0.82071883,106460.0,106450.0,0.23177909]
[1750049514516,0.81191682,106460.0,106450.0,0.23177909]
[1750049514748,0.82073629,106460.0,106450.0,0.23177909]
[1750049517057,0.81191682,106460.0,106450.0,0.23177909]
[1750049517282,0.82073629,106460.0,106450.0,0.23177909]
[1750049517527,0.81191682,106460.0,106450.0,0.23177909]
[1750049517788,0.82073629,106460.0,106450.0,0.23177909]
[1750049517979,0.81412169,106460.0,106450.0,0.23177909]
[1750049518169,0.82073641,106460.0,106450.0,0.23177909]
[1750049518310,0.82073625,106460.0,106450.0,0.23177909]
[1750049518516,0.82073639,106460.0,106450.0,0.23177909]
[1750049518724,0.80530222,106460.0,106450.0,0.23177909]
[1750049518926,0.82073661,106460.0,106450.0,0.23177909]
[1750049519304,0.82073633,106460.0,106450.0,0.23177909]
[1750049519505,0.81191685,106460.0,106450.0,0.23177909]
[1750049519695,0.82073632,106460.0,106450.0,0.23177909]
[1750049519831,0.82073629,106460.0,106450.0,0.23177909]
[1750049520046,0.80530222,106460.0,106450.0,0.23177909]
[1750049520271,0.81191687,106460.0,106450.0,0.23177909]
[1750049520470,0.81191689,106460.0,106450.0,0.23177909]
[1750049520728,0.82073645,106460.0,106450.0,0.23177909]
[1750049520965,0.81414731,106460.0,106450.0,0.23177909]
[1750049521170,0.82076198,106460.0,106450.0,0.23177909]
[1750049521365,0.81414731,106460.0,106450.0,0.23177909]
[1750049521573,0.82076198,106460.0,106450.0,0.23177909]
[1750049522093,0.81414731,106460.0,106450.0,0.23177909]
[1750049522295,0.82076198,106460.0,106450.0,0.23177909]
[1750049522540,0.81194124,106460.0,106450.0,0.23177909]
[1750049522744,0.82075922,106460.0,106450.0,0.23177909]
[1750049523181,0.82075923,106460.0,106450.0,0.23177909]
[1750049523338,0.81194124,106460.0,106450.0,0.23177909]
[1750049523542,0.80532775,106460.0,106450.0,0.21927326]
[1750049524007,0.81194124,106460.0,106450.0,0.21927326]
[1750049524211,0.80532775,106460.0,106450.0,0.21927326]
[1750049524371,0.80532775,106460.0,106450.0,0.19138]
[1750049524688,0.80532775,106460.0,106450.0,0.21927326]
[1750049525093,0.81194125,106460.0,106450.0,0.21927326]
[1750049525378,0.82075678,106460.0,106450.0,0.21927326]
[1750049525797,0.81414434,106460.0,106450.0,0.21927326]
[1750049525985,0.82075678,106460.0,106450.0,0.21927326]
[1750049526697,0.81414434,106460.0,106450.0,0.21927326]
[1750049526893,0.82075678,106460.0,106450.0,0.21927326]
[1750049527324,0.81414434,106460.0,106450.0,0.21927326]
[1750049527539,0.82075678,106460.0,106450.0,0.21927326]
[1750049527977,0.81414434,106460.0,106450.0,0.19138]
[1750049528196,0.82075678,106460.0,106450.0,0.21927326]
[1750049528931,0.81194019,106460.0,106450.0,0.21927326]
[1750049529130,0.81414434,106460.0,106450.0,0.21927326]
[1750049529341,0.82075678,106460.0,106450.0,0.21927326]
[1750049529554,0.81414434,106460.0,106450.0,0.21927326]
[1750049529782,0.81194019,106460.0,106450.0,0.21923326]
[1750049530010,0.82075678,106460.0,106450.0,0.21923326]
[1750049530220,0.81414434,106460.0,106450.0,0.21923326]
[1750049530433,0.80532775,106460.0,106450.0,0.21923326]
[1750049530648,0.81414434,106460.0,106450.0,0.21923326]
[1750049530856,0.82075678,106460.0,106450.0,0.21923326]
[1750049531066,0.81414434,106460.0,106450.0,0.21923326]
[1750049531239,0.82075678,106460.0,106450.0,0.21923326]
[1750049532020,0.80532775,106460.0,106450.0,0.21923326]
[1750049532224,0.81414434,106460.0,106450.0,0.21923326]
[1750049532647,0.82075678,106460.0,106450.0,0.21923326]
[1750049532850,0.80532775,106460.0,106450.0,0.21923326]
[1750049533071,0.82075678,106460.0,106450.0,0.21923326]
[1750049533288,0.81194019,106460.0,106450.0,0.21923326]
[1750049533485,0.82075678,106460.0,106450.0,0.21923326]
[1750049533682,0.81194019,106460.0,106450.0,0.21923326]
[1750049533891,0.82075678,106460.0,106450.0,0.21923326]
[1750049534091,0.81194019,106460.0,106450.0,0.21923326]
[1750049534300,0.82075678,106460.0,106450.0,0.21923326]
[1750049534499,0.8207568,106460.0,106450.0,0.21923326]
[1750049534903,0.8119402,106460.0,106450.0,0.21923326]
[1750049535441,0.8207568,106460.0,106450.0,0.21923326]
[1750049535646,0.80532775,106460.0,106450.0,0.21923326]
[1750049535857,0.8207568,106460.0,106450.0,0.21923326]
[1750049536180,0.8119402,106460.0,106450.0,0.21923326]
[1750049536401,0.82075685,106460.0,106450.0,0.21923326]
[1750049536609,0.82075687,106460.0,106450.0,0.21923326]
[1750049536846,0.82075685,106460.0,106450.0,0.21923326]
[1750049537263,0.82075686,106460.0,106450.0,0.21923326]
[1750049537476,0.82075709,106460.0,106450.0,0.21923326]
[1750049537705,0.82075726,106460.0,106450.0,0.21923326]
[1750049537921,0.8119404,106460.0,106450.0,0.21923326]
[1750049538159,0.82075726,106460.0,106450.0,0.21923326]
[1750049538583,0.82075726,106460.0,106450.0,0.19134]
[1750049538784,0.82075726,106460.0,106450.0,0.21923326]
[1750049539450,0.82075972,106460.0,106450.0,0.21923326]
[1750049539667,0.8141479,106460.0,106450.0,0.21923326]
[1750049539906,0.82076301,106460.0,106450.0,0.21923326]
[1750049540146,0.8141479,106460.0,106450.0,0.21923326]
[1750049540393,0.82076301,106460.0,106450.0,0.19134]
[1750049540590,0.82076301,106460.0,106450.0,0.21923326]
[1750049540819,0.80532775,106460.0,106450.0,0.19134]
[1750049541065,0.80532775,106460.0,106450.0,0.21923326]
[1750049541294,0.82076303,106460.0,106450.0,0.21923326]
[1750049541724,0.81414791,106460.0,106450.0,0.21923326]
[1750049541934,0.82076308,106460.0,106450.0,0.21923326]
[1750049542363,0.814148,106460.0,106450.0,0.21923326]
[1750049543371,0.82076318,106460.0,106450.0,0.21923326]
[1750049543715,0.81194293,106460.0,106450.0,0.21923326]
[1750049543926,0.82076318,106460.0,106450.0,0.21923326]
[1750049544347,0.81194293,106460.0,106450.0,0.21923326]
[1750049544566,0.82076318,106460.0,106450.0,0.21923326]
[1750049545234,0.80532775,106460.0,106450.0,0.21923326]
[1750049545457,0.81194292,106460.0,106450.0,0.21923326]
[1750049545678,0.82076315,106460.0,106450.0,0.21923326]
[1750049546214,0.80532775,106460.0,106450.0,0.21923326]
[1750049546640,0.81414799,106460.0,106450.0,0.21923326]
[1750049546874,0.82076317,106460.0,106450.0,0.21923326]
[1750049547305,0.81414799,106460.0,106450.0,0.21923326]
[1750049547524,0.82076317,106460.0,106450.0,0.21923326]
[1750049547740,0.81414799,106460.0,106450.0,0.21923326]
[1750049547949,0.82076213,106460.0,106450.0,0.21923326]
[1750049548176,0.82076075,106460.0,106450.0,0.21923326]
[1750049548400,0.82076066,106460.0,106450.0,0.21923326]
[1750049548617,0.82076062,106460.0,106450.0,0.21923326]
[1750049548835,0.82076053,106460.0,106450.0,0.21923326]
[1750049549055,0.80532775,106460.0,106450.0,0.21923326]
[1750049549287,0.82076028,106460.0,106450.0,0.21923326]
[1750049549748,0.80532775,106460.0,106450.0,0.21923326]
[1750049550012,0.82076028,106460.0,106450.0,0.21923326]
[1750049550838,0.80528071,106460.0,106450.0,0.21923326]
[1750049551023,0.81189465,106460.0,106450.0,0.21923326]
[1750049551257,0.81409929,106460.0,106450.0,0.21923326]
[1750049551478,0.81189465,106460.0,106450.0,0.21923326]
[1750049551708,0.82071324,106460.0,106450.0,0.21923326]
[1750049552164,0.81189465,106460.0,106450.0,0.21923326]
[1750049552394,0.82071329,106460.0,106450.0,0.21923326]
[1750049552624,0.82071375,106460.0,106450.0,0.21923326]
[1750049552883,0.81409959,106460.0,106450.0,0.21923326]
[1750049553123,0.80528071,106460.0,106450.0,0.21923326]
[1750049553575,0.8140996,106460.0,106450.0,0.21923326]
[1750049553798,0.80528071,106460.0,106450.0,0.21923326]
[1750049554020,0.82071375,106460.0,106450.0,0.21923326]
[1750049554467,0.82071376,106460.0,106450.0,0.21923326]
[1750049554932,0.8140996,106460.0,106450.0,0.21923326]
[1750049555154,0.80528071,106460.0,106450.0,0.21923326]
[1750049555387,0.82071376,106460.0,106450.0,0.21923326]
[1750049555625,0.82071407,106460.0,106450.0,0.21919326]
[1750049555844,0.82071383,106460.0,106450.0,0.21919326]
[1750049556073,0.82071389,106460.0,106450.0,0.21919326]
[1750049556331,0.82071377,106460.0,106450.0,0.21919326]
[1750049556555,0.8140996,106460.0,106450.0,0.21919326]
[1750049556768,0.81189487,106460.0,106450.0,0.21919326]
[1750049557007,0.80528071,106460.0,106450.0,0.21919326]
[1750049557222,0.81189487,106460.0,106450.0,0.21919326]
[1750049557429,0.82071375,106460.0,106450.0,0.21919326]
[1750049557645,0.81189487,106460.0,106450.0,0.21919326]
[1750049557826,0.80528071,106460.0,106450.0,0.21919326]
[1750049558058,0.81409959,106460.0,106450.0,0.21919326]
[1750049558271,0.82071363,106460.0,106450.0,0.23169909]
[1750049558486,0.81409951,106460.0,106450.0,0.23169909]
[1750049558705,0.82071361,106460.0,106450.0,0.23169909]
[1750049558937,0.82071358,106460.0,106450.0,0.23169909]
[1750049559150,0.8118948,106460.0,106450.0,0.23169909]
[1750049559360,0.82071361,106460.0,106450.0,0.23169909]
[1750049559979,0.81409951,106460.0,106450.0,0.23169909]
[1750049560189,0.82071361,106460.0,106450.0,0.23169909]
[1750049560400,0.80528071,106460.0,106450.0,0.23169909]
[1750049560619,0.82071361,106460.0,106450.0,0.23169909]
[1750049560830,0.81409952,106460.0,106450.0,0.23169909]
[1750049561268,0.80528071,106460.0,106450.0,0.23169909]
[1750049561483,0.82071363,106460.0,106450.0,0.23169909]
[1750049561695,0.81409952,106460.0,106450.0,0.23169909]
[1750049561905,0.82071363,106460.0,106450.0,0.23169909]
[1750049562557,0.80528071,106460.0,106450.0,0.23169909]
[1750049562770,0.37648939,106460.0,106450.0,0.23169909]
[1750049562991,0.82071091,106460.0,106450.0,0.23169909]
[1750049563665,0.81409797,106460.0,106450.0,0.23169909]
[1750049563882,0.82071091,106460.0,106450.0,0.23169909]
[1750049564538,0.81409796,106460.0,106450.0,0.23169909]
[1750049564751,0.8207109,106460.0,106450.0,0.23169909]
[1750049564939,0.81189365,106460.0,106450.0,0.23169909]
[1750049565146,0.8207109,106460.0,106450.0,0.23169909]
[1750049565359,0.81409796,106460.0,106450.0,0.23169909]
[1750049565580,0.8207109,106460.0,106450.0,0.23169909]
[1750049566512,0.81409796,106460.0,106450.0,0.23169909]
[1750049566811,0.33945296,106460.0,106450.0,0.25887769]
[1750049567060,0.77706154,106460.0,106450.0,0.25887769]
[1750049567284,0.78587812,106460.0,106450.0,0.23169909]
[1750049567496,0.77706154,106460.0,106450.0,0.23169909]
[1750049567715,0.78587646,106460.0,106450.0,0.07769909]
[1750049567935,0.7836732,106460.0,106450.0,0.0187]
[1750049568180,0.82070845,106460.0,106450.0,0.20059326]
[1750049568398,0.820709,106460.0,106450.0,0.20059326]
[1750049568615,0.81189291,106460.0,106450.0,0.20059326]
[1750049568860,0.81189283,106460.0,106450.0,0.20059326]
[1750049569077,0.82070899,106460.0,106450.0,0.20059326]
[1750049569290,0.82070892,106460.0,106450.0,0.20059326]
[1750049570167,0.80528071,106460.0,106450.0,0.20059326]
[1750049570351,0.8207089,106460.0,106450.0,0.20059326]
[1750049571020,0.81189279,106460.0,106450.0,0.20059326]
[1750049571202,0.8207089,106460.0,106450.0,0.20059326]
[1750049571846,0.81409682,106460.0,106450.0,0.21709326]
[1750049572064,0.8207089,106460.0,106450.0,0.04659326]
[1750049572276,0.34,106450.0,106440.0,0.03214694]
[1750049572494,1.22182948,106450.0,106440.0,0.2140002]
[1750049572713,1.22403368,106450.0,106440.0,0.03214694]
[1750049572928,1.22403368,106450.0,106440.0,0.16960694]
[1750049572929,1.35509758,106450.0,106440.0,0.16960694]
[1750049573142,1.34628657,106450.0,106440.0,0.01564694]
[1750049573384,1.34628659,106450.0,106440.0,0.15400694]
[1750049573628,1.3484896,106450.0,106440.0,0.15600694]
[1750049573886,6.40462728,106450.0,106440.0,0.00204694]
[1750049574123,6.47001647,106450.0,106440.0,0.00204694]
[1750049574361,6.50328726,106450.0,106440.0,0.00204694]
[1750049574587,6.44047018,106450.0,106440.0,0.00204694]
[1750049574826,6.49667809,106450.0,106440.0,0.00204694]
[1750049575063,6.50328731,106450.0,106440.0,0.00204694]
[1750049575305,6.49667809,106450.0,106440.0,0.00204694]
[1750049575520,6.5032874,106450.0,106440.0,4.694e-05]
[1750049575752,6.51268086,106450.0,106440.0,4.694e-05]
[1750049576379,6.52207452,106450.0,106440.0,4.694e-05]
[1750049576623,6.51546519,106450.0,106440.0,4.694e-05]
[1750049577063,6.42538131,106450.0,106440.0,4.694e-05]
[1750049577276,6.41598773,106450.0,106440.0,4.694e-05]
[1750049577485,6.02011624,106450.0,106440.0,4.694e-05]
[1750049577699,6.03611959,106450.0,106440.0,4.694e-05]
[1750049577935,6.02950988,106450.0,106440.0,4.694e-05]
[1750049578144,6.03911615,106450.0,106440.0,4.694e-05]
[1750049578572,6.02972251,106450.0,106440.0,4.694e-05]
[1750049579163,6.02311624,106450.0,106440.0,4.694e-05]
[1750049579582,5.96690833,106450.0,106440.0,4.694e-05]
[1750049579819,5.97351459,106450.0,106440.0,4.694e-05]
[1750049580145,5.96412113,106450.0,106440.0,4.694e-05]
[1750049580565,5.95751487,106450.0,106440.0,4.694e-05]
[1750049580770,5.9735146,106450.0,106440.0,4.694e-05]
[1750049581463,5.95751487,106450.0,106440.0,4.694e-05]
[1750049581901,5.96412113,106450.0,106440.0,4.694e-05]
[1750049582410,5.96412114,106450.0,106440.0,4.694e-05]
[1750049582628,5.97155582,106450.0,106440.0,4.694e-05]
[1750049582860,5.96486183,106450.0,106440.0,0.03224694]
[1750049583078,0.85663793,106450.0,106440.0,0.03224694]
[1750049583285,0.73886737,106450.0,106440.0,0.03224694]
[1750049583520,0.73886719,106450.0,106440.0,0.03224694]
[1750049583734,0.73886713,106450.0,106440.0,0.03224694]
[1750049583950,0.74106847,106450.0,106440.0,0.03224694]
[1750049584153,0.73886679,106450.0,106440.0,0.03224694]
[1750049584360,0.74767224,106450.0,106440.0,0.03224694]
[1750049584565,0.7476714,106450.0,106440.0,0.03224694]
[1750049584731,0.74767155,106450.0,106440.0,0.03224694]
[1750049584931,0.74767148,106450.0,106440.0,0.03224694]
[1750049585136,0.74106731,106450.0,106440.0,0.03224694]
[1750049585358,0.73226185,106450.0,106440.0,0.03224694]
[1750049585731,0.74106733,106450.0,106440.0,0.03224694]
[1750049585932,0.73226185,106450.0,106440.0,0.03224694]
[1750049586114,0.74106733,106450.0,106440.0,0.03224694]
[1750049586321,0.74767143,106450.0,106440.0,0.03224694]
[1750049587386,0.74106731,106450.0,106440.0,0.03224694]
[1750049587611,0.73886595,106450.0,106440.0,0.03224694]
[1750049588062,0.74767141,106450.0,106440.0,0.03224694]
[1750049588270,0.73886595,106450.0,106440.0,0.03224694]
[1750049588480,0.73226185,106450.0,106440.0,0.03224694]
[1750049588678,0.74767144,106450.0,106440.0,0.03224694]
[1750049589312,0.74106731,106450.0,106440.0,0.03224694]
[1750049589750,0.74767142,106450.0,106440.0,0.03224694]
[1750049590154,0.003,106450.0,106440.0,0.03224694]
[1750049590369,0.73226185,106450.0,106440.0,0.03224694]
[1750049590566,0.7410673,106450.0,106440.0,0.03224694]
[1750049590771,0.74767139,106450.0,106440.0,0.03224694]
[1750049590970,0.73226185,106450.0,106440.0,0.0601402]
[1750049591386,0.74106709,106450.0,106440.0,0.0601402]
[1750049591597,0.74106705,106450.0,106440.0,0.0601402]
[1750049591814,0.74106706,106450.0,106440.0,0.0601402]
[1750049592480,0.73226185,106450.0,106440.0,0.0601402]
[1750049592653,0.74768719,106450.0,106440.0,0.0601402]
[1750049592859,0.74107633,106450.0,106440.0,0.0601402]
[1750049593104,0.74768715,106450.0,106440.0,0.0601402]
[1750049593275,0.73887269,106450.0,106440.0,0.0601402]
[1750049593480,0.73887387,106450.0,106440.0,0.0601402]
[1750049593704,0.7476899,106450.0,106440.0,0.0601402]